Workbook

Sheet Лист1
R2: проигрош | T2: =SUMIF(S8:S13,"ложь",T8:T13) -> 4363.636364 | U2: =T3-T2 -> 2085.123967 | Z2: проигрош | AB2: =SUMIF(AA8:AA13,"ложь",AB8:AB13) -> 8950.413223 | AC2: =AB3-AB2 -> 4823.929376
R3: выгрош | T3: =SUMIF(S8:S13,TRUE,U8:U13) -> 6448.760331 | Z3: выгрош | AB3: =SUMIF(AA8:AA13,TRUE,AC8:AC13) -> 13774.3426
T5: 1 | AB5: 1
T6: 0.3 | U6: 1.85 | AB6: 0.3 | AC6: 1.85
Q8: 1 | R8: 1 | S8: FALSE | T8: 1000 | U8: =IF(S8=TRUE,T8*$U$6-T8,0-T8) -> -1000 | V8: =U8-W7 -> -1000 | W8: =IF(S8=FALSE,SUMIF($S$8:S8,"ложь",$T$8:T8),U8-W7) -> 1000 | Y8: 1 | Z8: 2 | AA8: TRUE | AB8: 2000 | AC8: =IF(AA8=TRUE,AB8*$U$6-AB8,0-AB8) -> 1700 | AD8: =AC8-AE7 -> 1700 | AE8: =IF(AA8=FALSE,SUMIF($S$8:AA8,"ложь",$T$8:AB8),AC8-AE7) -> 1700
Q9: 2 | R9: 1 | S9: FALSE | T9: =IF(S8=TRUE,$T$8,(T$5+$T$6)*SUM(T$8:T8)/(U6-(T$5+$T$6))) -> 2363.636364 | U9: =IF(S9=TRUE,T9*$U$6-T9,0-T9) -> -2363.636364 | V9: =U9-W8 -> -3363.636364 | W9: =IF(S9=FALSE,SUMIF($S$8:S9,"ложь",$T$8:T9),0) -> 3363.636364 | Y9: 2 | Z9: 2 | AA9: TRUE | AB9: =IF(AA8=TRUE,$T$8,(AB$5+$T$6)*SUM(AB$8:AB8)/(AC6-(AB$5+$T$6))) -> 1000 | AC9: =IF(AA9=TRUE,AB9*$U$6-AB9,0-AB9) -> 850 | AD9: =AC9-AE8 -> -850 | AE9: =IF(AA9=FALSE,SUMIF($S$8:AA9,"ложь",$T$8:AB9),0) -> 0
B10: 0 | Q10: 3 | R10: 1 | S10: TRUE | T10: =IF(S9=TRUE,$T$8,(T$5+$T$6)*T9/(U6-(T$5+$T$6))) -> 5586.77686 | U10: 4748.760331 | V10: 1385.123967 | W10: =IF(S10=FALSE,SUMIF($S$8:S10,"ложь",$T$8:T10),0) -> 0 | Y10: 3 | Z10: 2 | AA10: FALSE | AB10: =IF(AA9=TRUE,$T$8,(AB$5+$T$6)*AB9/(AC6-(AB$5+$T$6))) -> 1000 | AC10: -1000 | AD10: -1000 | AE10: =IF(AA10=FALSE,SUMIF($S$8:AA10,"ложь",$T$8:AB10),0) -> 4363.636364
Q11: 4 | R11: 1 | S11: TRUE | T11: =IF(S10=TRUE,$T$8,(T$5+$T$6)*T10/(U6-(T$5+$T$6))) -> 1000 | U11: 850 | V11: 850 | W11: =IF(S11=FALSE,SUMIF($S$8:S11,"ложь",$T$8:T11),0) -> 0 | Y11: 4 | Z11: 2 | AA11: FALSE | AB11: =IF(AA10=TRUE,$T$8,(AB$5+$T$6)*AB10/(AC6-(AB$5+$T$6))) -> 2363.636364 | AC11: -2363.636364 | AD11: -6727.272727 | AE11: =IF(AA11=FALSE,SUMIF($S$8:AA11,"ложь",$T$8:AB11),0) -> 6727.272727
Q12: 5 | R12: 1 | S12: TRUE | T12: =IF(S11=TRUE,$T$8,(T$5+$T$6)*T11/(U6-(T$5+$T$6))) -> 1000 | U12: 850 | V12: 850 | W12: =IF(S12=FALSE,SUMIF($S$8:S12,"ложь",$T$8:T12),0) -> 0 | Y12: 5 | Z12: 2 | AA12: FALSE | AB12: =IF(AA11=TRUE,$T$8,(AB$5+$T$6)*AB11/(AC6-(AB$5+$T$6))) -> 5586.77686 | AC12: -5586.77686 | AD12: -12314.04959 | AE12: =IF(AA12=FALSE,SUMIF($S$8:AA12,"ложь",$T$8:AB12),0) -> 12314.04959
Q13: 6 | R13: 1 | S13: FALSE | T13: =IF(S12=TRUE,$T$8,(T$5+$T$6)*T12/(U6-(T$5+$T$6))) -> 1000 | U13: -1000 | V13: -1000 | W13: =IF(S13=FALSE,SUMIF($S$8:S13,"ложь",$T$8:T13),0) -> 4363.636364 | Y13: 6 | Z13: 2 | AA13: TRUE | AB13: =IF(AA12=TRUE,$T$8,(AB$5+$T$6)*AB12/(AC6-(AB$5+$T$6))) -> 13205.10894 | AC13: 11224.3426 | AD13: -1089.706987 | AE13: =IF(AA13=FALSE,SUMIF($S$8:AA13,"ложь",$T$8:AB13),0) -> 0
G29: влажение | H29: =IF(G36>0,"ПЛЮС","МИНУС") -> МИНУС
G30: 60000 | H30: =G32+H32 -> 3.7 | I30: 5000
G31: кайфиценты | I31: 1
G32: 1.85 | H32: 1.85
G33: =G30/H30*H32 -> 30000 | H33: =G30/H30*G32 -> 30000
G34: =G32*G33 -> 55500 | H34: =H32*H33 -> 55500 | I34: -12165.35433
G35: выгрош
G36: =G34-G30 -> -4500 | H36: =H34-G30 -> -4500 | I36: =G36 -> -4500
H38: =H36/G30 -> -0.075
